[Event "23rd OIBM 2019"]
[Site "Gmund am Tegernsee"]
[Date "2019.11.01"]
[Round "7.34"]
[White "Schaefer, Michael"]
[Black "Koepke, Christian"]
[Result "1/2-1/2"]
[ECO "A10"]
[WhiteElo "2160"]
[BlackElo "2332"]
[Annotator "NA RC"]
[PlyCount "62"]
[EventDate "2019.10.17"]
[EventType "swiss"]
[EventCountry "GER"]
[SourceTitle "playchess.com"]
[Source "ChessBase"]
[SourceQuality "1"]
[TimeControl "40/5400+30:1800+30"]

1. c4 {[%emt 0:00:00]} g6 {[%emt 0:00:11]} 2. g3 {[%emt 0:00:05]} Bg7 {[%emt 0:00:15]} 3. Bg2 {[%emt 0:00:05]} Nf6 {[%emt 0:00:20]} 4. Nc3 {[%emt 0:00:11]} O-O {[%emt 0:00:26]} 5. Nf3 {[%emt 0:00:06]} d6 {[%emt 0:00:14]} 6. O-O {[%emt 0:00:52]} a6 {[%emt 0:00:52]} 7. d3 {[%emt 0:01:57]} c6 {[%emt 0:00:53]} 8. Rb1 {[%emt 0:01:59]} b5 {[%emt 0:02:15]} 9. e4 {[%emt 0:07:05]} Nbd7 {[%emt 0:19:38]} 10. Qc2 {[%emt 0:18:58]} e5 {[%emt 0:03:12]} 11. h3 {[%emt 0:02:13]} Bb7 {[%emt 0:01:48]} 12. b4 {[%emt 0:06:47]} Re8 {[%emt 0:04:14]} 13. a4 {[%emt 0:01:06]} Rc8 {[%emt 0:08:18]} 14. Re1 {[%emt 0:06:23]} bxc4 {[%emt 0:20:33]} 15. dxc4 {[%emt 0:00:17]} d5 {[%emt 0:00:30]} 16. c5 {[%emt 0:08:46]} a5 {[%emt 0:06:24]} 17. bxa5 {[%emt 0:01:18]} Ba8 {[%emt 0:04:42]} 18. Ba3 {[%emt 0:15:12]} Qxa5 {[%emt 0:00:18]} 19. Bb4 {[%emt 0:00:38]} Qd8 {[%emt 0:09:36]} 20. Nd2 {[%emt 0:00:54]} Bf8 {[%emt 0:02:12]} 21. Nb3 {[%emt 0:03:13]} Rb8 {[%emt 0:05:09]} 22. Ba3 {[%emt 0:01:11]} Bb7 {[%emt 0:00:47]} 23. a5 {[%emt 0:01:16]} Ba6 {[%emt 0:00:48]} 24. Na4 {[%emt 0:06:24]} Nxe4 {[%emt 0:01:37]} 25. Rxe4 {[%emt 0:03:54]} dxe4 {[%emt 0:00:02]} 26. Bxe4 {[%emt 0:00:22]} Rxb3 {[%emt 0:03:05]} 27. Qxb3 {[%emt 0:00:40]} Bb5 {[%emt 0:03:13]} 28. Rd1 {[%emt 0:01:32]} Qc7 {[%emt 0:01:00]} 29. Nb6 {[%emt 0:00:16]} Nf6 {[%emt 0:01:12]} 30. Bd3 {[%emt 0:00:56]} Bxd3 {[%emt 0:00:40]} 31. Qxd3 {[%emt 0:00:32]} e4 {[%emt 0:00:00]} 1/2-1/2

[Event "23rd OIBM 2019"]
[Site "Gmund am Tegernsee"]
[Date "2019.11.01"]
[Round "7.36"]
[White "Ramaraju, N."]
[Black "Nasshan, Dennis"]
[Result "0-1"]
[ECO "D35"]
[WhiteElo "2139"]
[BlackElo "2306"]
[Annotator "NA"]
[PlyCount "46"]
[EventDate "2019.10.17"]
[EventType "swiss"]
[EventCountry "GER"]
[SourceTitle "playchess.com"]
[Source "ChessBase"]
[SourceQuality "1"]
[TimeControl "40/5400+30:1800+30"]

1. d4 {[%emt 0:00:00]} Nf6 {[%emt 0:00:00]} 2. c4 {[%emt 0:01:07]} e6 {[%emt 0:00:00]} 3. Nc3 {[%emt 0:01:05]} d5 {[%emt 0:00:00]} 4. cxd5 {[%emt 0:00:34]} exd5 {[%emt 0:00:00]} 5. Bg5 {[%emt 0:00:02]} Be7 {[%emt 0:00:09]} 6. e3 {[%emt 0:00:04]} c6 {[%emt 0:00:01]} 7. Bd3 {[%emt 0:00:36]} Nbd7 {[%emt 0:00:02]} 8. Qc2 {[%emt 0:00:36]} h6 {[%emt 0:00:01]} 9. Bh4 {[%emt 0:00:01]} Nh5 {[%emt 0:00:10]} 10. Bxe7 {[%emt 0:00:23]} Qxe7 {[%emt 0:00:03]} 11. Nge2 {[%emt 0:00:16]} Nb6 {[%emt 0:00:03]} 12. O-O {[%emt 0:01:00]} O-O {[%emt 0:00:38]} 13. Ng3 {[%emt 0:00:58]} Nxg3 {[%emt 0:02:28]} 14. hxg3 {[%emt 0:00:02]} Bd7 {[%emt 0:00:35]} 15. a3 {[%emt 0:05:24]} a5 {[%emt 0:00:18]} 16. Qb3 {[%emt 0:00:56]} Qd8 {[%emt 0:01:53]} 17. Na4 {[%emt 0:00:01]} Nxa4 {[%emt 0:01:59]} 18. Qxa4 {[%emt 0:00:02]} h5 {[%emt 0:03:58]} 19. Qd1 {[%emt 0:04:10]} g6 {[%emt 0:01:00]} 20. Qf3 {[%emt 0:00:13]} Bg4 {[%emt 0:01:10]} 21. Qf4 {[%emt 0:23:41]} g5 {[%emt 0:00:21]} 22. Qxg4 {[%emt 0:00:04]} hxg4 {[%emt 0:00:02]} 23. Bf5 {[%emt 0:00:01]} Kg7 0-1

[Event "23rd OIBM 2019"]
[Site "Gmund am Tegernsee"]
[Date "2019.11.01"]
[Round "7.37"]
[White "Seifert, Volker"]
[Black "Kastek, Thomas"]
[Result "1/2-1/2"]
[ECO "E32"]
[WhiteElo "2300"]
[BlackElo "2129"]
[Annotator "RC"]
[PlyCount "115"]
[EventDate "2019.10.17"]
[EventType "swiss"]
[EventCountry "GER"]
[SourceTitle "playchess.com"]
[Source "ChessBase"]
[SourceQuality "1"]
[TimeControl "40/5400+30:1800+30"]

1. d4 {[%emt 0:00:00]} Nf6 {[%emt 0:00:00]} 2. c4 {[%emt 0:00:00]} e6 {[%emt 0:00:00]} 3. Nc3 {[%emt 0:00:08]} Bb4 {[%emt 0:00:00]} 4. Qc2 {[%emt 0:01:18]} O-O {[%emt 0:00:27]} 5. a3 {[%emt 0:01:49]} Bxc3+ {[%emt 0:00:15]} 6. Qxc3 {[%emt 0:00:04]} d5 {[%emt 0:00:10]} 7. Bg5 {[%emt 0:01:57]} dxc4 {[%emt 0:00:40]} 8. Qxc4 {[%emt 0:04:09]} b6 {[%emt 0:00:11]} 9. Nf3 {[%emt 0:00:50]} Ba6 {[%emt 0:00:20]} 10. Qa4 {[%emt 0:06:08]} Qd7 {[%emt 0:06:03]} 11. Qxd7 {[%emt 0:04:55]} Nbxd7 {[%emt 0:00:23]} 12. e3 {[%emt 0:03:01]} Bxf1 {[%emt 0:02:07]} 13. Rxf1 {[%emt 0:00:14]} c5 {[%emt 0:05:35]} 14. Bxf6 {[%emt 0:04:05]} gxf6 {[%emt 0:03:28]} 15. Ke2 {[%emt 0:01:33]} Rac8 {[%emt 0:07:23]} 16. Rac1 {[%emt 0:03:02]} Kg7 {[%emt 0:07:44]} 17. Rfd1 {[%emt 0:04:33]} cxd4 {[%emt 0:14:19]} 18. Nxd4 {[%emt 0:01:34]} Nc5 {[%emt 0:01:53]} 19. Rc2 {[%emt 0:03:36]} Ne4 {[%emt 0:07:14]} 20. Rxc8 {[%emt 0:19:15]} Rxc8 {[%emt 0:00:21]} 21. f3 {[%emt 0:00:06]} Nc5 {[%emt 0:02:55]} 22. Rc1 {[%emt 0:00:14]} Rc7 {[%emt 0:15:38]} 23. b4 {[%emt 0:04:54]} Na6 {[%emt 0:00:14]} 24. Rd1 {[%emt 0:00:14]} Nb8 {[%emt 0:07:06]} 25. b5 {[%emt 0:02:16]} Kf8 {[%emt 0:04:31]} 26. Nxe6+ {[%emt 0:05:26]} fxe6 {[%emt 0:00:08]} 27. Rd8+ {[%emt 0:00:04]} Ke7 {[%emt 0:00:28]} 28. Rxb8 {[%emt 0:00:04]} Kd6 {[%emt 0:00:39]} 29. Rd8+ {[%emt 0:08:57]} Kc5 {[%emt 0:01:28]} 30. a4 {[%emt 0:01:26]} e5 {[%emt 0:04:31]} 31. Rg8 {[%emt 0:00:59]} h5 {[%emt 0:03:08]} 32. g4 {[%emt 0:02:02]} Kb4 {[%emt 0:00:40]} 33. h4 {[%emt 0:08:54]} Kxa4 {[%emt 0:01:05]} 34. g5 {[%emt 0:00:13]} Kxb5 {[%emt 0:02:18]} 35. Re8 {[%emt 0:01:41]} Rf7 {[%emt 0:02:17]} 36. Re6 {[%emt 0:02:22]} a5 {[%emt 0:01:27]} 37. Rxf6 {[%emt 0:00:56]} Re7 {[%emt 0:00:09]} 38. g6 {[%emt 0:02:09]} Rg7 {[%emt 0:00:52]} 39. f4 {[%emt 0:01:27]} a4 {[%emt 0:00:24]} 40. f5 {[%emt 0:01:18]} a3 {[%emt 0:00:13]} 41. Rd6 {[%emt 0:03:39]} a2 {[%emt 0:04:31]} 42. Rd1 {[%emt 0:00:04]} Kc4 {[%emt 0:00:35]} 43. Rf1 {[%emt 0:04:23]} e4 {[%emt 0:06:23]} 44. Kd2 {[%emt 0:09:58]} Kb3 {[%emt 0:01:00]} 45. Ra1 {[%emt 0:01:22]} b5 {[%emt 0:15:39]} 46. Rxa2 {[%emt 0:00:12]} Kxa2 {[%emt 0:00:06]} 47. Kc3 {[%emt 0:00:03]} Ka3 {[%emt 0:00:13]} 48. Kd4 {[%emt 0:00:06]} b4 {[%emt 0:00:23]} 49. Ke5 {[%emt 0:00:04]} b3 {[%emt 0:00:21]} 50. f6 {[%emt 0:00:55]} Rxg6 {[%emt 0:02:33]} 51. f7 {[%emt 0:00:03]} Ra6 {[%emt 0:01:59]} 52. f8=Q+ {[%emt 0:00:06]} Ka2 {[%emt 0:00:17]} 53. Qb4 {[%emt 0:03:03]} Ra3 {[%emt 0:00:55]} 54. Qc4 {[%emt 0:02:24]} Ka1 {[%emt 0:00:29]} 55. Qc3+ {[%emt 0:02:32]} Ka2 {[%emt 0:00:08]} 56. Qc4 {[%emt 0:00:10]} Ka1 {[%emt 0:00:10]} 57. Qc1+ {[%emt 0:01:10]} Ka2 {[%emt 0:00:13]} 58. Qc4 1/2-1/2

[Event "23rd OIBM 2019"]
[Site "Gmund am Tegernsee"]
[Date "2019.11.01"]
[Round "7.40"]
[White "Kaiser, Elmar"]
[Black "Koelle, Tobias"]
[Result "1/2-1/2"]
[ECO "C83"]
[WhiteElo "2131"]
[BlackElo "2281"]
[Annotator "RC"]
[PlyCount "202"]
[EventDate "2019.10.17"]
[EventType "swiss"]
[EventCountry "GER"]
[SourceTitle "playchess.com"]
[Source "ChessBase"]
[SourceQuality "1"]
[TimeControl "40/5400+30:1800+30"]

1. e4 {[%emt 0:00:46]} e5 {[%emt 0:00:00]} 2. Nf3 {[%emt 0:00:18]} Nc6 {[%emt 0:00:00]} 3. Bb5 {[%emt 0:00:19]} a6 {[%emt 0:00:00]} 4. Ba4 {[%emt 0:00:22]} Nf6 {[%emt 0:00:00]} 5. O-O {[%emt 0:00:13]} Nxe4 {[%emt 0:00:31]} 6. d4 {[%emt 0:00:51]} b5 {[%emt 0:00:07]} 7. Bb3 {[%emt 0:00:07]} d5 {[%emt 0:00:04]} 8. dxe5 {[%emt 0:00:17]} Be6 {[%emt 0:00:07]} 9. Nbd2 {[%emt 0:03:18]} Be7 {[%emt 0:01:30]} 10. c3 {[%emt 0:00:31]} O-O {[%emt 0:00:20]} 11. Qe2 {[%emt 0:09:28]} Nxd2 {[%emt 0:03:30]} 12. Bxd2 {[%emt 0:00:55]} Na5 {[%emt 0:13:37]} 13. Nd4 {[%emt 0:04:44]} Nxb3 {[%emt 0:07:13]} 14. Nc6 {[%emt 0:03:26]} Qd7 {[%emt 0:00:31]} 15. Nxe7+ {[%emt 0:00:07]} Qxe7 {[%emt 0:00:06]} 16. axb3 {[%emt 0:00:03]} c5 {[%emt 0:02:11]} 17. Qh5 {[%emt 0:10:12]} Qd7 {[%emt 0:09:09]} 18. h3 {[%emt 0:04:53]} d4 {[%emt 0:08:42]} 19. b4 {[%emt 0:10:43]} cxb4 {[%emt 0:00:41]} 20. cxb4 {[%emt 0:00:21]} Rfc8 {[%emt 0:01:52]} 21. Rfc1 {[%emt 0:02:45]} Rc4 {[%emt 0:01:39]} 22. Qf3 {[%emt 0:01:14]} Bd5 {[%emt 0:08:34]} 23. Qg3 {[%emt 0:00:47]} Qe6 {[%emt 0:08:05]} 24. b3 {[%emt 0:12:59]} Rxc1+ {[%emt 0:00:40]} 25. Rxc1 {[%emt 0:00:06]} Bxb3 {[%emt 0:01:35]} 26. Rc5 {[%emt 0:02:46]} Bc4 {[%emt 0:05:21]} 27. Qg4 {[%emt 0:05:05]} Qxg4 {[%emt 0:01:46]} 28. hxg4 {[%emt 0:01:46]} h6 {[%emt 0:00:21]} 29. f4 {[%emt 0:04:48]} Be2 {[%emt 0:01:09]} 30. Kf2 {[%emt 0:03:23]} Bxg4 {[%emt 0:00:20]} 31. Rd5 {[%emt 0:00:18]} Rc8 {[%emt 0:02:54]} 32. Rxd4 {[%emt 0:00:17]} Rc2 {[%emt 0:03:20]} 33. Ke3 {[%emt 0:05:27]} Bf5 {[%emt 0:01:26]} 34. Rd6 {[%emt 0:00:54]} Ra2 {[%emt 0:00:40]} 35. Rc6 {[%emt 0:00:16]} Ra1 {[%emt 0:01:06]} 36. Rc1 {[%emt 0:00:23]} Ra3+ {[%emt 0:00:36]} 37. Rc3 {[%emt 0:00:14]} Ra2 {[%emt 0:00:43]} 38. g3 {[%emt 0:03:20]} Kh7 {[%emt 0:02:08]} 39. Rc6 {[%emt 0:01:08]} Be6 {[%emt 0:02:12]} 40. Rc1 {[%emt 0:00:36]} Kg6 {[%emt 0:00:21]} 41. Bc3 {[%emt 0:09:45]} h5 {[%emt 0:03:35]} 42. Ra1 {[%emt 0:01:40]} Rxa1 {[%emt 0:01:00]} 43. Bxa1 {[%emt 0:01:08]} Kf5 {[%emt 0:00:07]} 44. Bc3 {[%emt 0:00:19]} Kg4 {[%emt 0:01:38]} 45. Be1 {[%emt 0:09:28]} Bd5 {[%emt 0:00:34]} 46. Bf2 {[%emt 0:00:52]} Bb7 {[%emt 0:01:29]} 47. Be1 {[%emt 0:00:11]} g6 {[%emt 0:00:12]} 48. Kf2 {[%emt 0:01:34]} h4 {[%emt 0:00:10]} 49. gxh4 {[%emt 0:01:36]} Kxf4 {[%emt 0:00:07]} 50. Bc3 {[%emt 0:01:28]} Kg4 {[%emt 0:00:28]} 51. Bd4 {[%emt 0:04:24]} Kxh4 {[%emt 0:00:19]} 52. Bb6 {[%emt 0:00:21]} Kg4 {[%emt 0:00:21]} 53. Bc7 {[%emt 0:02:28]} Bd5 {[%emt 0:00:21]} 54. Bd8 {[%emt 0:01:03]} Kf4 {[%emt 0:00:15]} 55. Bc7 {[%emt 0:00:06]} Be6 {[%emt 0:00:08]} 56. Bd6 {[%emt 0:01:12]} g5 {[%emt 0:00:06]} 57. Bc7 {[%emt 0:00:22]} g4 {[%emt 0:00:04]} 58. Bd6 {[%emt 0:00:50]} g3+ {[%emt 0:12:45]} 59. Kg2 {[%emt 0:00:47]} Bd5+ {[%emt 0:00:53]} 60. Kg1 {[%emt 0:00:10]} Kf3 {[%emt 0:00:28]} 61. Bc7 {[%emt 0:00:20]} Kg4 {[%emt 0:02:25]} 62. Kf1 {[%emt 0:01:17]} Kf5 {[%emt 0:01:01]} 63. Kg1 {[%emt 0:00:10]} Ke6 {[%emt 0:01:27]} 64. Kf1 {[%emt 0:00:36]} Kd7 {[%emt 0:00:56]} 65. Bb6 {[%emt 0:00:30]} Kc6 {[%emt 0:00:32]} 66. Ba5 {[%emt 0:00:18]} Be4 {[%emt 0:00:24]} 67. Kg1 {[%emt 0:00:21]} Bf3 {[%emt 0:00:25]} 68. Bd8 {[%emt 0:00:31]} Kd5 {[%emt 0:00:59]} 69. Bc7 {[%emt 0:00:06]} Ke4 {[%emt 0:00:24]} 70. Kf1 {[%emt 0:00:39]} Kd3 {[%emt 0:01:01]} 71. Ba5 {[%emt 0:00:22]} Kc4 {[%emt 0:00:50]} 72. Kg1 {[%emt 0:00:05]} Kd5 {[%emt 0:00:43]} 73. Bc7 {[%emt 0:00:08]} Ke6 {[%emt 0:00:09]} 74. Kf1 {[%emt 0:00:07]} Bc6 {[%emt 0:02:03]} 75. Kg1 {[%emt 0:00:09]} Ba8 {[%emt 0:00:30]} 76. Kf1 {[%emt 0:00:07]} Kf5 {[%emt 0:00:04]} 77. Kg1 {[%emt 0:00:05]} Kg4 {[%emt 0:00:02]} 78. Ba5 {[%emt 0:00:45]} Kf3 {[%emt 0:00:21]} 79. Bb6 {[%emt 0:00:23]} Kg4 {[%emt 0:00:52]} 80. Ba5 {[%emt 0:00:14]} Kh3 {[%emt 0:00:04]} 81. Bb6 {[%emt 0:00:17]} Be4 {[%emt 0:00:36]} 82. Ba5 {[%emt 0:00:11]} Kg4 {[%emt 0:00:05]} 83. Bb6 {[%emt 0:00:20]} Kf3 {[%emt 0:00:04]} 84. Ba5 {[%emt 0:00:24]} Bf5 {[%emt 0:00:03]} 85. Bb6 {[%emt 0:00:18]} Bh3 {[%emt 0:00:04]} 86. Ba5 {[%emt 0:00:20]} Ke4 {[%emt 0:00:43]} 87. Bc7 {[%emt 0:00:24]} Kd4 {[%emt 0:00:06]} 88. Kh1 {[%emt 0:00:06]} Ke3 {[%emt 0:00:58]} 89. Kg1 {[%emt 0:00:04]} g2 {[%emt 0:00:13]} 90. Bb6+ {[%emt 0:00:24]} Kf3 {[%emt 0:00:20]} 91. Ba5 {[%emt 0:00:05]} Bc8 {[%emt 0:00:07]} 92. Bb6 {[%emt 0:00:03]} Bb7 {[%emt 0:00:04]} 93. Bc7 {[%emt 0:00:29]} Kg4 {[%emt 0:00:09]} 94. Kf2 {[%emt 0:00:25]} Kf5 {[%emt 0:00:13]} 95. Kg1 {[%emt 0:00:04]} a5 {[%emt 0:00:06]} 96. Bxa5 {[%emt 0:00:04]} Kxe5 {[%emt 0:00:05]} 97. Bb6 {[%emt 0:00:07]} f5 {[%emt 0:00:05]} 98. Ba7 {[%emt 0:00:38]} Kf4 {[%emt 0:00:05]} 99. Bb6 {[%emt 0:00:08]} Kg3 {[%emt 0:00:06]} 100. Ba7 {[%emt 0:00:09]} f4 {[%emt 0:00:08]} 101. Bb6 {[%emt 0:00:06]} f3 {[%emt 0:00:11]} 1/2-1/2

[Event "23rd OIBM 2019"]
[Site "Gmund am Tegernsee"]
[Date "2019.11.02"]
[Round "8.10"]
[White "Marin, Mihail"]
[Black "Weber, Ulrich"]
[Result "0-1"]
[ECO "B20"]
[WhiteElo "2524"]
[BlackElo "2360"]
[Annotator "RC"]
[PlyCount "98"]
[EventDate "2019.10.17"]
[EventType "swiss"]
[EventCountry "GER"]
[SourceTitle "playchess.com"]
[Source "ChessBase"]
[SourceQuality "1"]
[TimeControl "40/5400+30:1800+30"]

1. e4 {[%emt 0:00:00]} c5 {[%emt 0:00:00]} 2. d3 {[%emt 0:00:00]} Nc6 {[%emt 0:00:09]} 3. g3 {[%emt 0:00:00]} g6 {[%emt 0:00:25]} 4. Bg2 {[%emt 0:00:00]} Bg7 {[%emt 0:00:09]} 5. f4 {[%emt 0:00:01]} e6 {[%emt 0:00:48]} 6. Nf3 {[%emt 0:00:06]} Nge7 {[%emt 0:00:04]} 7. O-O {[%emt 0:00:05]} O-O {[%emt 0:00:06]} 8. c3 {[%emt 0:00:04]} b6 {[%emt 0:00:08]} 9. Be3 {[%emt 0:01:56]} Ba6 {[%emt 0:01:15]} 10. Re1 {[%emt 0:05:33]} Rc8 {[%emt 0:02:29]} 11. Na3 {[%emt 0:00:38]} d6 {[%emt 0:06:58]} 12. d4 {[%emt 0:01:45]} cxd4 {[%emt 0:00:22]} 13. Nxd4 {[%emt 0:01:36]} Nxd4 {[%emt 0:02:46]} 14. Bxd4 {[%emt 0:04:24]} e5 {[%emt 0:01:21]} 15. Bf2 {[%emt 0:00:09]} Qd7 {[%emt 0:02:31]} 16. fxe5 {[%emt 0:04:26]} Bxe5 {[%emt 0:03:13]} 17. Nc2 {[%emt 0:00:06]} Bc4 {[%emt 0:08:11]} 18. Qd2 {[%emt 0:07:13]} Rfe8 {[%emt 0:06:31]} 19. b3 {[%emt 0:11:41]} Be6 {[%emt 0:03:36]} 20. Nd4 {[%emt 0:04:17]} Qb7 {[%emt 0:21:18]} 21. c4 {[%emt 0:03:18]} Nc6 {[%emt 0:01:44]} 22. Rad1 {[%emt 0:00:53]} Bg4 {[%emt 0:01:10]} 23. Nxc6 {[%emt 0:04:26]} Qxc6 {[%emt 0:01:17]} 24. Rc1 {[%emt 0:00:09]} Qd7 {[%emt 0:00:46]} 25. Be3 {[%emt 0:01:40]} Rc6 {[%emt 0:10:36]} 26. Qf2 {[%emt 0:01:54]} Rec8 {[%emt 0:01:28]} 27. Bf1 {[%emt 0:00:51]} h5 {[%emt 0:00:45]} 28. Rc2 {[%emt 0:01:58]} R6c7 {[%emt 0:01:43]} 29. Rec1 {[%emt 0:00:47]} Kg7 {[%emt 0:04:25]} 30. a4 {[%emt 0:03:53]} Qe7 {[%emt 0:01:28]} 31. Ra2 {[%emt 0:00:55]} Be6 {[%emt 0:01:42]} 32. Rb1 {[%emt 0:01:47]} f5 {[%emt 0:04:01]} 33. exf5 {[%emt 0:08:40]} Bxf5 {[%emt 0:00:47]} 34. Re1 {[%emt 0:00:20]} Rf8 {[%emt 0:02:07]} 35. Qd2 {[%emt 0:00:42]} Kh7 {[%emt 0:00:39]} 36. Bg2 {[%emt 0:04:45]} Qg7 {[%emt 0:00:24]} 37. Rf1 {[%emt 0:06:43]} Re8 {[%emt 0:01:41]} 38. Kh1 {[%emt 0:02:00]} Bc3 {[%emt 0:00:57]} 39. Qf2 {[%emt 0:03:40]} Rce7 {[%emt 0:02:45]} 40. Bg5 {[%emt 0:01:12]} Re1 {[%emt 0:01:56]} 41. Bd2 {[%emt 0:21:06]} R1e2 {[%emt 0:02:36]} 42. Qf4 {[%emt 0:03:51]} R8e4 {[%emt 0:07:39]} 43. Bxc3 {[%emt 0:03:56]} Rxf4 {[%emt 0:02:25]} 44. gxf4 {[%emt 0:02:02]} Rxg2 {[%emt 0:02:26]} 45. Bxg7 {[%emt 0:04:46]} Rxa2 {[%emt 0:00:14]} 46. Ra1 {[%emt 0:00:09]} Be4+ {[%emt 0:00:10]} 47. Kg1 {[%emt 0:00:05]} Rg2+ {[%emt 0:00:34]} 48. Kf1 {[%emt 0:00:03]} Kxg7 {[%emt 0:00:29]} 49. Re1 {[%emt 0:00:06]} Bc6 {[%emt 0:01:09]} 0-1

[Event "23rd OIBM 2019"]
[Site "Gmund am Tegernsee"]
[Date "2019.11.02"]
[Round "8.20"]
[White "Rasch, Holger"]
[Black "Braeuer, Franz"]
[Result "1/2-1/2"]
[ECO "C48"]
[WhiteElo "2236"]
[BlackElo "2429"]
[Annotator "RC"]
[PlyCount "74"]
[EventDate "2019.10.17"]
[EventType "swiss"]
[EventCountry "GER"]
[SourceTitle "playchess.com"]
[Source "ChessBase"]
[SourceQuality "1"]
[TimeControl "40/5400+30:1800+30"]

1. e4 {[%emt 0:00:00]} e5 {[%emt 0:00:00]} 2. Nf3 {[%emt 0:00:00]} Nc6 {[%emt 0:00:00]} 3. Nc3 {[%emt 0:00:00]} Nf6 {[%emt 0:00:00]} 4. Bb5 {[%emt 0:00:00]} Bd6 {[%emt 0:00:24]} 5. a3 {[%emt 0:00:59]} O-O {[%emt 0:04:28]} 6. d3 {[%emt 0:00:35]} a6 {[%emt 0:02:19]} 7. Bc4 {[%emt 0:00:25]} Be7 {[%emt 0:06:28]} 8. h3 {[%emt 0:05:21]} d6 {[%emt 0:00:39]} 9. Be3 {[%emt 0:01:12]} b5 {[%emt 0:00:13]} 10. Ba2 {[%emt 0:01:17]} Be6 {[%emt 0:00:11]} 11. Nd5 {[%emt 0:03:05]} Qd7 {[%emt 0:07:26]} 12. Ng5 {[%emt 0:12:04]} Bxd5 {[%emt 0:11:32]} 13. exd5 {[%emt 0:03:19]} Nd4 {[%emt 0:00:03]} 14. Bxd4 {[%emt 0:06:38]} exd4 {[%emt 0:00:04]} 15. Nf3 {[%emt 0:00:19]} Nh5 {[%emt 0:12:29]} 16. Nxd4 {[%emt 0:32:27]} Bf6 {[%emt 0:04:55]} 17. Qxh5 {[%emt 0:02:38]} Bxd4 {[%emt 0:00:03]} 18. c3 {[%emt 0:01:21]} Rfe8+ {[%emt 0:02:02]} 19. Kf1 {[%emt 0:00:21]} Bf6 {[%emt 0:00:54]} 20. d4 {[%emt 0:06:04]} a5 {[%emt 0:07:17]} 21. Rd1 {[%emt 0:02:04]} b4 {[%emt 0:05:16]} 22. axb4 {[%emt 0:00:15]} axb4 {[%emt 0:00:01]} 23. Bb1 {[%emt 0:00:18]} g6 {[%emt 0:09:37]} 24. Qf3 {[%emt 0:00:21]} Bg7 {[%emt 0:01:37]} 25. g3 {[%emt 0:00:12]} bxc3 {[%emt 0:00:23]} 26. bxc3 {[%emt 0:00:06]} Qb5+ {[%emt 0:08:51]} 27. Kg2 {[%emt 0:00:50]} Qc4 {[%emt 0:00:01]} 28. Rhe1 {[%emt 0:01:22]} Rab8 {[%emt 0:00:13]} 29. Rxe8+ {[%emt 0:11:02]} Rxe8 {[%emt 0:00:01]} 30. Be4 {[%emt 0:00:21]} f5 {[%emt 0:04:37]} 31. Qd3 {[%emt 0:00:43]} Qxd3 {[%emt 0:01:13]} 32. Bxd3 {[%emt 0:00:03]} Ra8 {[%emt 0:00:04]} 33. Rc1 {[%emt 0:04:10]} Ra3 {[%emt 0:00:29]} 34. Bc4 {[%emt 0:00:43]} Bh6 {[%emt 0:02:29]} 35. f4 {[%emt 0:00:21]} g5 {[%emt 0:00:03]} 36. fxg5 {[%emt 0:01:06]} Bxg5 {[%emt 0:00:04]} 37. Rc2 {[%emt 0:00:10]} f4 {[%emt 0:01:35]} 1/2-1/2

[Event "23rd OIBM 2019"]
[Site "Gmund am Tegernsee"]
[Date "2019.11.02"]
[Round "8.29"]
[White "Morawietz, Dieter"]
[Black "Cordts, Ingo"]
[Result "1-0"]
[ECO "D31"]
[WhiteElo "2419"]
[BlackElo "2212"]
[Annotator "RC"]
[PlyCount "65"]
[EventDate "2019.10.17"]
[EventType "swiss"]
[EventCountry "GER"]
[SourceTitle "playchess.com"]
[Source "ChessBase"]
[SourceQuality "1"]
[TimeControl "40/5400+30:1800+30"]

1. d4 {[%emt 0:00:00]} d5 {[%emt 0:00:00]} 2. c4 {[%emt 0:00:00]} e6 {[%emt 0:00:20]} 3. Nc3 {[%emt 0:00:00]} Bb4 {[%emt 0:00:09]} 4. a3 {[%emt 0:02:07]} Bxc3+ {[%emt 0:00:07]} 5. bxc3 {[%emt 0:00:06]} dxc4 {[%emt 0:02:06]} 6. e3 {[%emt 0:04:51]} b5 {[%emt 0:00:59]} 7. a4 {[%emt 0:01:25]} c6 {[%emt 0:01:15]} 8. axb5 {[%emt 0:15:40]} cxb5 {[%emt 0:00:30]} 9. Qf3 {[%emt 0:00:11]} Qd5 {[%emt 0:01:18]} 10. Qg3 {[%emt 0:00:18]} g6 {[%emt 0:18:18]} 11. Be2 {[%emt 0:04:42]} Nc6 {[%emt 0:03:11]} 12. Bf3 {[%emt 0:08:30]} Qd7 {[%emt 0:00:11]} 13. Ba3 {[%emt 0:01:03]} Bb7 {[%emt 0:03:35]} 14. Nh3 {[%emt 0:05:30]} Nge7 {[%emt 0:01:50]} 15. Ng5 {[%emt 0:08:26]} Nf5 {[%emt 0:17:31]} 16. Qf4 {[%emt 0:08:52]} O-O-O {[%emt 0:09:21]} 17. Ne4 {[%emt 0:07:39]} e5 {[%emt 0:03:05]} 18. dxe5 {[%emt 0:04:38]} g5 {[%emt 0:06:15]} 19. Qxg5 {[%emt 0:00:12]} Nxe5 {[%emt 0:05:29]} 20. Nd6+ {[%emt 0:01:30]} Nxd6 {[%emt 0:02:34]} 21. Qxe5 {[%emt 0:00:18]} Bxf3 {[%emt 0:02:51]} 22. gxf3 {[%emt 0:00:31]} Nf5 {[%emt 0:01:52]} 23. O-O {[%emt 0:05:14]} Rhg8+ {[%emt 0:02:10]} 24. Kh1 {[%emt 0:00:10]} Rg5 {[%emt 0:01:48]} 25. Qf4 {[%emt 0:05:21]} Rdg8 {[%emt 0:01:28]} 26. Rfd1 {[%emt 0:08:51]} Qc6 {[%emt 0:01:54]} 27. e4 {[%emt 0:00:54]} Qg6 {[%emt 0:00:46]} 28. exf5 {[%emt 0:01:24]} Rxf5 {[%emt 0:04:14]} 29. Qg4 {[%emt 0:02:27]} Qxg4 {[%emt 0:00:20]} 30. fxg4 {[%emt 0:00:06]} Rxg4 {[%emt 0:01:41]} 31. Bd6 {[%emt 0:00:39]} Rxf2 {[%emt 0:01:42]} 32. Rxa7 {[%emt 0:00:33]} h5 {[%emt 0:01:47]} 33. Be5 {[%emt 0:00:52]} 1-0